[Event "26th Abu Dhabi Master 2019"]
[Site "Abu Dhabi"]
[Date "2019.08.08"]
[Round "7.3"]
[White "Esipenko, Andrey"]
[Black "Yakubboev, Nodirbek"]
[Result "1/2-1/2"]
[ECO "C54"]
[WhiteElo "2621"]
[BlackElo "2575"]
[Annotator "ChessBase"]
[PlyCount "57"]
[EventDate "2019.08.02"]
[EventType "swiss"]
[EventCountry "UAE"]
[SourceTitle "playchess.com"]
[Source "ChessBase"]
[SourceQuality "1"]
[TimeControl "5400+30"]

1. Nf3 {[%emt 0:00:00]} Nc6 {[%emt 0:12:48]} 2. e4 {[%emt 0:04:10]} e5 {[%emt 0:00:24]} 3. Bc4 {[%emt 0:00:21]} Bc5 {[%emt 0:00:05]} 4. c3 {[%emt 0:00:13]} Nf6 {[%emt 0:00:02]} 5. d3 {[%emt 0:00:15]} d6 {[%emt 0:00:13]} 6. O-O {[%emt 0:00:23]} a6 {[%emt 0:00:33]} 7. a4 {[%emt 0:00:15]} Ba7 {[%emt 0:00:11]} 8. Re1 {[%emt 0:01:27]} O-O {[%emt 0:00:57]} 9. h3 {[%emt 0:00:54]} Ne7 {[%emt 0:04:54]} 10. Nbd2 {[%emt 0:05:20]} Ng6 {[%emt 0:00:52]} 11. Nf1 {[%emt 0:07:51]} c6 {[%emt 0:03:26]} 12. Bb3 {[%emt 0:01:37]} Re8 {[%emt 0:08:02]} 13. Ng3 {[%emt 0:02:00]} Be6 {[%emt 0:01:49]} 14. d4 {[%emt 0:06:01]} h6 {[%emt 0:12:30]} 15. Bc2 {[%emt 0:00:56]} Qc7 {[%emt 0:09:26]} 16. Be3 {[%emt 0:03:35]} Rad8 {[%emt 0:00:31]} 17. Qc1 {[%emt 0:03:09]} Bb8 {[%emt 0:01:35]} 18. a5 {[%emt 0:04:19]} Qd7 {[%emt 0:03:48]} 19. dxe5 {[%emt 0:20:28]} dxe5 {[%emt 0:03:58]} 20. Bb6 {[%emt 0:01:52]} Bc7 {[%emt 0:03:32]} 21. Qe3 {[%emt 0:00:40]} Nf4 {[%emt 0:01:20]} 22. Rad1 {[%emt 0:06:35]} Qc8 {[%emt 0:00:15]} 23. Bxc7 {[%emt 0:01:12]} Qxc7 {[%emt 0:00:03]} 24. b4 {[%emt 0:00:13]} g6 {[%emt 0:04:13]} 25. Nf1 {[%emt 0:06:04]} Kg7 {[%emt 0:01:42]} 26. N1d2 {[%emt 0:05:02]} c5 {[%emt 0:08:56]} 27. Qxc5 {[%emt 0:02:15]} Qxc5 {[%emt 0:00:07]} 28. bxc5 {[%emt 0:00:02]} Nd7 {[%emt 0:02:39]} 29. c6 {[%emt 0:03:24]} 1/2-1/2

[Event "26th Abu Dhabi Master 2019"]
[Site "Abu Dhabi"]
[Date "2019.08.08"]
[Round "7.4"]
[White "Maghsoodloo, Parham"]
[Black "Can, Emre"]
[Result "1/2-1/2"]
[ECO "A25"]
[WhiteElo "2656"]
[BlackElo "2595"]
[Annotator "ChessBase"]
[PlyCount "77"]
[EventDate "2019.08.02"]
[EventType "swiss"]
[EventCountry "UAE"]
[SourceTitle "playchess.com"]
[Source "ChessBase"]
[SourceQuality "1"]
[TimeControl "5400+30"]

1. c4 {[%emt 0:03:29]} e5 {[%emt 0:00:07]} 2. g3 {[%emt 0:00:07]} Nc6 {[%emt 0:00:44]} 3. Nc3 {[%emt 0:00:45]} g6 {[%emt 0:00:18]} 4. Bg2 {[%emt 0:00:32]} Bg7 {[%emt 0:00:19]} 5. Rb1 {[%emt 0:00:54]} a5 {[%emt 0:00:17]} 6. a3 {[%emt 0:00:24]} Nf6 {[%emt 0:02:52]} 7. d3 {[%emt 0:10:25]} d6 {[%emt 0:02:21]} 8. Nh3 {[%emt 0:05:50]} Bd7 {[%emt 0:24:54]} 9. f4 {[%emt 0:05:54]} Qc8 {[%emt 0:00:29]} 10. Nf2 {[%emt 0:01:10]} Ng4 {[%emt 0:03:31]} 11. O-O {[%emt 0:04:11]} O-O {[%emt 0:01:04]} 12. Nd5 {[%emt 0:01:56]} Re8 {[%emt 0:03:11]} 13. e3 {[%emt 0:12:19]} exf4 {[%emt 0:08:31]} 14. gxf4 {[%emt 0:00:48]} Ne7 {[%emt 0:00:32]} 15. Nxe7+ {[%emt 0:05:15]} Rxe7 {[%emt 0:00:09]} 16. Qf3 {[%emt 0:00:06]} Nxf2 {[%emt 0:01:06]} 17. Qxf2 {[%emt 0:00:12]} f5 {[%emt 0:08:37]} 18. b4 {[%emt 0:02:35]} axb4 {[%emt 0:00:19]} 19. axb4 {[%emt 0:00:43]} Bc6 {[%emt 0:01:15]} 20. Bxc6 {[%emt 0:04:59]} bxc6 {[%emt 0:00:08]} 21. Qf3 {[%emt 0:03:30]} Qe8 {[%emt 0:02:22]} 22. b5 {[%emt 0:00:17]} Rb8 {[%emt 0:08:55]} 23. Bd2 {[%emt 0:00:26]} cxb5 {[%emt 0:01:36]} 24. Qd5+ {[%emt 0:00:07]} Qf7 {[%emt 0:00:39]} 25. Rxb5 {[%emt 0:02:07]} Rxb5 {[%emt 0:02:43]} 26. Qxb5 {[%emt 0:04:11]} Bf6 {[%emt 0:05:18]} 27. Rb1 {[%emt 0:01:34]} Kg7 {[%emt 0:02:01]} 28. Qc6 {[%emt 0:01:41]} Qe8 {[%emt 0:02:42]} 29. Qxe8 {[%emt 0:00:36]} Rxe8 {[%emt 0:00:03]} 30. Rb7 {[%emt 0:00:07]} Bd8 {[%emt 0:00:20]} 31. Kf2 {[%emt 0:00:06]} Kf7 {[%emt 0:00:06]} 32. Kf3 {[%emt 0:01:21]} Ke6 {[%emt 0:00:14]} 33. e4 {[%emt 0:01:33]} fxe4+ {[%emt 0:00:36]} 34. dxe4 {[%emt 0:00:04]} Rf8 {[%emt 0:01:24]} 35. Ke3 {[%emt 0:02:55]} Rf7 {[%emt 0:01:11]} 36. Ba5 {[%emt 0:02:20]} Kd7 {[%emt 0:00:26]} 37. Rb5 {[%emt 0:01:20]} Bf6 {[%emt 0:01:15]} 38. Rb8 {[%emt 0:01:14]} Bg7 {[%emt 0:00:46]} 39. Be1 {[%emt 0:01:50]} 1/2-1/2

[Event "26th Abu Dhabi Master 2019"]
[Site "Abu Dhabi"]
[Date "2019.08.08"]
[Round "7.5"]
[White "Bartel, Mateusz"]
[Black "Vaibhav, Suri"]
[Result "1-0"]
[ECO "E21"]
[WhiteElo "2600"]
[BlackElo "2591"]
[Annotator "ChessBase"]
[PlyCount "61"]
[EventDate "2019.08.02"]
[EventType "swiss"]
[EventCountry "UAE"]
[SourceTitle "playchess.com"]
[Source "ChessBase"]
[SourceQuality "1"]
[TimeControl "5400+30"]

1. d4 {[%emt 0:00:00]} Nf6 {[%emt 0:00:06]} 2. c4 {[%emt 0:00:00]} e6 {[%emt 0:00:05]} 3. Nc3 {[%emt 0:00:00]} Bb4 {[%emt 0:00:07]} 4. Nf3 {[%emt 0:00:00]} b6 {[%emt 0:00:38]} 5. Bd2 {[%emt 0:00:06]} Bb7 {[%emt 0:00:12]} 6. e3 {[%emt 0:00:09]} O-O {[%emt 0:00:18]} 7. Bd3 {[%emt 0:00:05]} d5 {[%emt 0:00:10]} 8. cxd5 {[%emt 0:00:08]} exd5 {[%emt 0:00:08]} 9. Rc1 {[%emt 0:00:13]} Be7 {[%emt 0:02:06]} 10. O-O {[%emt 0:00:19]} c5 {[%emt 0:00:05]} 11. Ne5 {[%emt 0:08:01]} Nc6 {[%emt 0:00:24]} 12. Be1 {[%emt 0:03:15]} Bd6 {[%emt 0:00:34]} 13. f4 {[%emt 0:03:49]} cxd4 {[%emt 0:00:10]} 14. Nxc6 {[%emt 0:00:08]} Bxc6 {[%emt 0:00:05]} 15. exd4 {[%emt 0:00:50]} Be7 {[%emt 0:00:32]} 16. Bh4 {[%emt 0:05:10]} Qd6 {[%emt 0:02:34]} 17. a3 {[%emt 0:09:13]} Bd8 {[%emt 0:16:23]} 18. Bg3 {[%emt 0:07:45]} Ne4 {[%emt 0:13:26]} 19. Bxe4 {[%emt 0:00:25]} dxe4 {[%emt 0:00:04]} 20. f5 {[%emt 0:07:24]} Qd7 {[%emt 0:00:28]} 21. f6 {[%emt 0:01:16]} Re8 {[%emt 0:12:50]} 22. d5 {[%emt 0:09:09]} Bb7 {[%emt 0:00:49]} 23. Qh5 {[%emt 0:03:24]} gxf6 {[%emt 0:18:01]} 24. Rf5 {[%emt 0:02:36]} Kh8 {[%emt 0:06:24]} 25. Rcf1 {[%emt 0:02:12]} e3 {[%emt 0:03:40]} 26. Rxf6 {[%emt 0:05:49]} e2 {[%emt 0:05:42]} 27. Rxf7 {[%emt 0:00:36]} exf1=Q+ {[%emt 0:02:18]} 28. Kxf1 {[%emt 0:00:09]} Ba6+ {[%emt 0:01:02]} 29. Kg1 {[%emt 0:00:22]} Qxf7 {[%emt 0:00:05]} 30. Qxf7 {[%emt 0:00:05]} Bg5 {[%emt 0:00:03]} 31. Bf2 {[%emt 0:00:23]} 1-0

[Event "26th Abu Dhabi Master 2019"]
[Site "Abu Dhabi"]
[Date "2019.08.08"]
[Round "7.6"]
[White "Aravindh, Chithambaram VR."]
[Black "Yuffa, Daniil"]
[Result "1/2-1/2"]
[ECO "A38"]
[WhiteElo "2600"]
[BlackElo "2582"]
[Annotator "ChessBase"]
[PlyCount "127"]
[EventDate "2019.08.02"]
[EventType "swiss"]
[EventCountry "UAE"]
[SourceTitle "playchess.com"]
[Source "ChessBase"]
[SourceQuality "1"]
[TimeControl "5400+30"]

1. Nf3 {[%emt 0:00:00]} Nf6 {[%emt 0:00:09]} 2. g3 {[%emt 0:00:00]} c5 {[%emt 0:01:49]} 3. c4 {[%emt 0:00:00]} Nc6 {[%emt 0:00:49]} 4. Bg2 {[%emt 0:00:23]} g6 {[%emt 0:00:33]} 5. Nc3 {[%emt 0:00:27]} Bg7 {[%emt 0:00:07]} 6. d4 {[%emt 0:00:32]} cxd4 {[%emt 0:00:12]} 7. Nxd4 {[%emt 0:00:07]} O-O {[%emt 0:00:06]} 8. O-O {[%emt 0:00:07]} Qa5 {[%emt 0:00:03]} 9. e3 {[%emt 0:06:57]} d6 {[%emt 0:00:29]} 10. Bd2 {[%emt 0:03:13]} Bd7 {[%emt 0:14:02]} 11. Rc1 {[%emt 0:10:30]} Rfc8 {[%emt 0:03:07]} 12. Qe2 {[%emt 0:02:24]} Bg4 {[%emt 0:05:59]} 13. f3 {[%emt 0:02:07]} Bd7 {[%emt 0:02:08]} 14. b3 {[%emt 0:03:57]} a6 {[%emt 0:03:21]} 15. Nxc6 {[%emt 0:07:42]} Bxc6 {[%emt 0:03:05]} 16. e4 {[%emt 0:00:49]} Qa3 {[%emt 0:14:48]} 17. Rc2 {[%emt 0:07:13]} a5 {[%emt 0:12:41]} 18. Rb1 {[%emt 0:06:04]} Bd7 {[%emt 0:10:18]} 19. Be3 {[%emt 0:06:36]} Qb4 {[%emt 0:06:51]} 20. Bf1 {[%emt 0:00:33]} Bc6 {[%emt 0:09:00]} 21. a4 {[%emt 0:11:20]} Nd7 {[%emt 0:03:32]} 22. Na2 {[%emt 0:01:48]} Qa3 {[%emt 0:00:05]} 23. c5 {[%emt 0:00:43]} d5 {[%emt 0:03:36]} 24. Bc1 {[%emt 0:01:27]} Bd4+ {[%emt 0:00:30]} 25. Kh1 {[%emt 0:00:32]} Qxc5 {[%emt 0:00:22]} 26. Rxc5 {[%emt 0:00:06]} Nxc5 {[%emt 0:00:03]} 27. Be3 {[%emt 0:04:35]} e5 {[%emt 0:00:37]} 28. Bxd4 {[%emt 0:03:56]} exd4 {[%emt 0:00:03]} 29. e5 {[%emt 0:00:04]} d3 {[%emt 0:00:02]} 30. Qd1 {[%emt 0:07:09]} d4 {[%emt 0:00:41]} 31. Bxd3 {[%emt 0:00:37]} Re8 {[%emt 0:00:03]} 32. Bb5 {[%emt 0:00:33]} Bxb5 {[%emt 0:00:54]} 33. axb5 {[%emt 0:00:04]} d3 {[%emt 0:00:29]} 34. Rc1 {[%emt 0:00:51]} Rxe5 {[%emt 0:00:36]} 35. f4 {[%emt 0:04:22]} Rd5 {[%emt 0:00:14]} 36. Rc4 {[%emt 0:00:11]} d2 {[%emt 0:01:41]} 37. Nc3 {[%emt 0:03:33]} Re8 {[%emt 0:00:49]} 38. Kg2 {[%emt 0:00:06]} Re1 {[%emt 0:01:13]} 39. Rxc5 {[%emt 0:00:10]} Rxd1 {[%emt 0:00:16]} 40. Rc8+ {[%emt 0:00:04]} Kg7 {[%emt 0:00:02]} 41. Nxd1 {[%emt 0:00:03]} Rxb5 {[%emt 0:00:14]} 42. Kf2 {[%emt 0:00:10]} Rxb3 {[%emt 0:00:11]} 43. Ke2 {[%emt 0:00:38]} h5 {[%emt 0:01:06]} 44. Rc3 {[%emt 0:05:05]} Rxc3 {[%emt 0:02:48]} 45. Nxc3 {[%emt 0:00:04]} Kf6 {[%emt 0:00:05]} 46. Ne4+ {[%emt 0:03:01]} Ke6 {[%emt 0:00:04]} 47. Kxd2 {[%emt 0:00:37]} Kd5 {[%emt 0:02:16]} 48. Kd3 {[%emt 0:01:15]} b5 {[%emt 0:00:06]} 49. Ng5 {[%emt 0:00:57]} f6 {[%emt 0:00:44]} 50. Ne4 {[%emt 0:00:03]} Ke6 {[%emt 0:00:56]} 51. Kd4 {[%emt 0:00:47]} a4 {[%emt 0:00:39]} 52. h3 {[%emt 0:00:47]} a3 {[%emt 0:00:36]} 53. g4 {[%emt 0:00:36]} hxg4 {[%emt 0:00:10]} 54. hxg4 {[%emt 0:00:03]} a2 {[%emt 0:00:55]} 55. Nc5+ {[%emt 0:00:04]} Kd6 {[%emt 0:00:14]} 56. Nb3 {[%emt 0:00:05]} g5 {[%emt 0:00:44]} 57. f5 {[%emt 0:00:34]} Kc6 {[%emt 0:00:19]} 58. Na1 {[%emt 0:00:07]} Kd6 {[%emt 0:00:18]} 59. Nc2 {[%emt 0:00:05]} b4 {[%emt 0:00:38]} 60. Na1 {[%emt 0:01:16]} Kc6 {[%emt 0:00:08]} 61. Nb3 {[%emt 0:00:05]} Kd6 {[%emt 0:00:49]} 62. Na1 {[%emt 0:01:13]} Kc6 {[%emt 0:00:05]} 63. Nb3 {[%emt 0:00:56]} Kd6 {[%emt 0:00:32]} 64. Na1 {[%emt 0:00:44] Ke5+ Ke4+} 1/2-1/2

[Event "26th Abu Dhabi Master 2019"]
[Site "Abu Dhabi"]
[Date "2019.08.08"]
[Round "7.7"]
[White "Aleksandrov, Aleksej"]
[Black "Zubov, Alexander"]
[Result "1/2-1/2"]
[ECO "E54"]
[WhiteElo "2571"]
[BlackElo "2601"]
[Annotator "ChessBase"]
[PlyCount "25"]
[EventDate "2019.08.02"]
[EventType "swiss"]
[EventCountry "UAE"]
[SourceTitle "playchess.com"]
[Source "ChessBase"]
[SourceQuality "1"]
[TimeControl "5400+30"]

1. d4 {[%emt 0:00:00]} Nf6 {[%emt 0:00:00]} 2. c4 {[%emt 0:00:00]} e6 {[%emt 0:00:00]} 3. Nc3 {[%emt 0:00:00]} Bb4 {[%emt 0:00:00]} 4. e3 {[%emt 0:00:00]} O-O {[%emt 0:00:13]} 5. Bd3 {[%emt 0:00:00]} c5 {[%emt 0:01:14]} 6. Nf3 {[%emt 0:00:05]} d5 {[%emt 0:00:25]} 7. O-O {[%emt 0:00:07]} dxc4 {[%emt 0:00:49]} 8. Bxc4 {[%emt 0:00:06]} Nc6 {[%emt 0:00:29]} 9. a3 {[%emt 0:02:04]} Ba5 {[%emt 0:00:05]} 10. h3 {[%emt 0:01:53]} h6 {[%emt 0:01:00]} 11. d5 {[%emt 0:03:35]} exd5 {[%emt 0:01:18]} 12. Nxd5 {[%emt 0:00:13]} Be6 {[%emt 0:17:00]} 13. Nxf6+ {[%emt 0:01:21]} 1/2-1/2

[Event "26th Abu Dhabi Master 2019"]
[Site "Abu Dhabi"]
[Date "2019.08.08"]
[Round "7.8"]
[White "Aryan Chopra"]
[Black "Antipov, Mikhail Al."]
[Result "0-1"]
[ECO "B90"]
[WhiteElo "2553"]
[BlackElo "2582"]
[Annotator "ChessBase"]
[PlyCount "60"]
[EventDate "2019.08.02"]
[EventType "swiss"]
[EventCountry "UAE"]
[SourceTitle "playchess.com"]
[Source "ChessBase"]
[SourceQuality "1"]
[TimeControl "5400+30"]

1. e4 {[%emt 0:00:00]} c5 {[%emt 0:00:00]} 2. Nf3 {[%emt 0:00:00]} d6 {[%emt 0:00:00]} 3. d4 {[%emt 0:00:00]} cxd4 {[%emt 0:00:00]} 4. Nxd4 {[%emt 0:00:00]} Nf6 {[%emt 0:00:00]} 5. Nc3 {[%emt 0:00:00]} a6 {[%emt 0:00:03]} 6. h4 {[%emt 0:00:07]} e5 {[%emt 0:01:11]} 7. Nb3 {[%emt 0:00:04]} Be7 {[%emt 0:00:25]} 8. Be2 {[%emt 0:00:08]} h6 {[%emt 0:05:43]} 9. Be3 {[%emt 0:06:30]} Be6 {[%emt 0:09:44]} 10. Nd5 {[%emt 0:01:41]} Nxd5 {[%emt 0:02:45]} 11. exd5 {[%emt 0:00:05]} Bf5 {[%emt 0:00:06]} 12. g4 {[%emt 0:14:55]} Be4 {[%emt 0:15:17]} 13. Bf3 {[%emt 0:09:15]} Bh7 {[%emt 0:00:29]} 14. Qd2 {[%emt 0:10:27]} Nd7 {[%emt 0:00:44]} 15. Na5 {[%emt 0:03:34]} Qc7 {[%emt 0:15:52]} 16. Rc1 {[%emt 0:05:00]} e4 {[%emt 0:03:02]} 17. Be2 {[%emt 0:01:02]} Ne5 {[%emt 0:00:08]} 18. Qb4 {[%emt 0:06:08]} O-O {[%emt 0:01:35]} 19. Nc4 {[%emt 0:13:08]} Nf3+ {[%emt 0:06:29]} 20. Bxf3 {[%emt 0:02:38]} exf3 {[%emt 0:00:03]} 21. g5 {[%emt 0:06:56]} h5 {[%emt 0:02:06]} 22. Nd2 {[%emt 0:07:01]} Rae8 {[%emt 0:00:28]} 23. Rg1 {[%emt 0:02:27]} Bd8 {[%emt 0:04:27]} 24. Kd1 {[%emt 0:00:48]} Qd7 {[%emt 0:04:51]} 25. Qd4 {[%emt 0:07:02]} Bf5 {[%emt 0:04:13]} 26. b3 {[%emt 0:00:40]} Bg4 {[%emt 0:01:58]} 27. Ne4 {[%emt 0:01:17]} Re5 {[%emt 0:12:40]} 28. Kd2 {[%emt 0:02:06]} Ba5+ {[%emt 0:01:39]} 29. c3 {[%emt 0:00:54]} Qb5 {[%emt 0:00:41]} 30. Nxd6 {[%emt 0:00:29]} Qe2# {[%emt 0:00:06]} 0-1

[Event "26th Abu Dhabi Master 2019"]
[Site "Abu Dhabi"]
[Date "2019.08.08"]
[Round "7.10"]
[White "Paichadze, Luka"]
[Black "Volokitin, Andrei"]
[Result "1/2-1/2"]
[ECO "B22"]
[WhiteElo "2567"]
[BlackElo "2636"]
[Annotator "ChessBase"]
[PlyCount "116"]
[EventDate "2019.08.02"]
[EventType "swiss"]
[EventCountry "UAE"]
[SourceTitle "playchess.com"]
[Source "ChessBase"]
[SourceQuality "1"]
[TimeControl "5400+30"]

1. e4 {[%emt 0:00:50]} c5 {[%emt 0:00:00]} 2. c3 {[%emt 0:01:07]} Nf6 {[%emt 0:00:02]} 3. e5 {[%emt 0:00:14]} Nd5 {[%emt 0:00:06]} 4. Nf3 {[%emt 0:00:53]} Nc6 {[%emt 0:00:19]} 5. Bc4 {[%emt 0:02:21]} Nb6 {[%emt 0:00:19]} 6. Bb3 {[%emt 0:00:04]} d6 {[%emt 0:00:45]} 7. exd6 {[%emt 0:00:20]} Qxd6 {[%emt 0:00:58]} 8. Na3 {[%emt 0:00:50]} a6 {[%emt 0:11:49]} 9. O-O {[%emt 0:00:43]} Bf5 {[%emt 0:11:32]} 10. Bxf7+ {[%emt 0:00:34]} Kxf7 {[%emt 0:00:08]} 11. Qb3+ {[%emt 0:00:05]} Nd5 {[%emt 0:01:39]} 12. Nc4 {[%emt 0:00:20]} Qd8 {[%emt 0:02:58]} 13. Qxb7 {[%emt 0:00:30]} Rc8 {[%emt 0:04:03]} 14. d4 {[%emt 0:00:24]} Kg8 {[%emt 0:35:25]} 15. Rd1 {[%emt 0:07:19]} e6 {[%emt 0:08:41]} 16. dxc5 {[%emt 0:13:42]} Bxc5 {[%emt 0:01:42]} 17. Be3 {[%emt 0:10:23]} Bxe3 {[%emt 0:04:13]} 18. fxe3 {[%emt 0:04:03]} Qc7 {[%emt 0:02:12]} 19. Qxa6 {[%emt 0:00:28]} Nb8 {[%emt 0:00:34]} 20. Qa3 {[%emt 0:01:48]} Qxc4 {[%emt 0:00:10]} 21. Rd4 {[%emt 0:00:10]} Qa6 {[%emt 0:06:05]} 22. Qxa6 {[%emt 0:01:41]} Nxa6 {[%emt 0:00:01]} 23. e4 {[%emt 0:00:08]} Nf4 {[%emt 0:00:04]} 24. Rd6 {[%emt 0:00:34]} Bxe4 {[%emt 0:00:06]} 25. Rxa6 {[%emt 0:00:04]} Bxf3 {[%emt 0:00:07]} 26. gxf3 {[%emt 0:00:03]} Kf7 {[%emt 0:00:20]} 27. Rd1 {[%emt 0:01:08]} Rhd8 {[%emt 0:00:58]} 28. Ra7+ {[%emt 0:00:28]} Kf6 {[%emt 0:00:06]} 29. Rad7 {[%emt 0:00:29]} Rxd7 {[%emt 0:00:42]} 30. Rxd7 {[%emt 0:00:05]} Rc5 {[%emt 0:01:58]} 31. Kf1 {[%emt 0:01:22]} Rd5 {[%emt 0:02:20]} 32. Rxd5 {[%emt 0:01:30]} exd5 {[%emt 0:00:01]} 33. a4 Ke5 {[%emt 0:00:09]} 34. b4 {[%emt 0:01:39]} d4 {[%emt 0:03:12]} 35. cxd4+ {[%emt 0:02:24]} Kxd4 {[%emt 0:00:01]} 36. a5 {[%emt 0:00:11]} Kc4 {[%emt 0:01:08]} 37. a6 {[%emt 0:00:47]} Nd5 {[%emt 0:00:03]} 38. a7 {[%emt 0:00:09]} Nc7 {[%emt 0:00:04]} 39. Kf2 {[%emt 0:01:12]} Kxb4 {[%emt 0:00:06]} 40. Ke3 {[%emt 0:00:18]} Kc5 {[%emt 0:00:06]} 41. Kf4 {[%emt 0:00:05]} Kb6 {[%emt 0:00:10]} 42. Ke5 {[%emt 0:00:58]} Kxa7 {[%emt 0:00:04]} 43. Kd6 {[%emt 0:09:03]} Nb5+ {[%emt 0:05:18]} 44. Ke7 {[%emt 0:00:12]} Nd4 {[%emt 0:00:09]} 45. f4 {[%emt 0:00:04]} Kb6 {[%emt 0:01:04]} 46. Kf7 {[%emt 0:00:19]} Nf5 {[%emt 0:00:22]} 47. Kg8 {[%emt 0:00:05]} Kc5 {[%emt 0:00:37]} 48. Kxh7 {[%emt 0:00:15]} Kd4 {[%emt 0:00:13]} 49. Kg6 {[%emt 0:00:20]} Ke4 {[%emt 0:00:05]} 50. Kg5 {[%emt 0:00:08]} Nd4 {[%emt 0:00:47]} 51. h4 {[%emt 0:03:42]} Nf5 {[%emt 0:00:57]} 52. h5 {[%emt 0:00:10]} Nh6 {[%emt 0:00:13]} 53. Kg6 {[%emt 0:00:09]} Nf5 {[%emt 0:00:01]} 54. Kg5 {[%emt 0:00:07]} Nd6 {[%emt 0:00:39]} 55. Kg6 {[%emt 0:00:09]} Nf5 {[%emt 0:00:06]} 56. Kg5 {[%emt 0:00:04]} Ne7 {[%emt 0:00:15]} 57. h6 {[%emt 0:00:12]} gxh6+ {[%emt 0:00:03]} 58. Kxh6 {[%emt 0:00:06]} Kxf4 {[%emt 0:00:03]} 1/2-1/2

[Event "26th Abu Dhabi Master 2019"]
[Site "Abu Dhabi"]
[Date "2019.08.08"]
[Round "7.11"]
[White "Istratescu, Andrei"]
[Black "Ter-Sahakyan, Samvel"]
[Result "0-1"]
[ECO "B90"]
[WhiteElo "2555"]
[BlackElo "2625"]
[Annotator "ChessBase"]
[PlyCount "66"]
[EventDate "2019.08.02"]
[EventType "swiss"]
[EventCountry "UAE"]
[SourceTitle "playchess.com"]
[Source "ChessBase"]
[SourceQuality "1"]
[TimeControl "5400+30"]

1. e4 {[%emt 0:00:32]} c5 {[%emt 0:01:08]} 2. Nf3 {[%emt 0:00:50]} d6 {[%emt 0:00:10]} 3. d4 {[%emt 0:00:49]} cxd4 {[%emt 0:00:05]} 4. Nxd4 {[%emt 0:00:03]} Nf6 {[%emt 0:00:06]} 5. Nc3 {[%emt 0:00:02]} a6 {[%emt 0:00:11]} 6. Be3 {[%emt 0:00:12]} e5 {[%emt 0:01:26]} 7. Nb3 {[%emt 0:00:14]} Be6 {[%emt 0:00:09]} 8. Qd2 {[%emt 0:03:35]} Nbd7 {[%emt 0:01:22]} 9. O-O-O {[%emt 0:02:33]} Rc8 {[%emt 0:03:01]} 10. f4 {[%emt 0:03:40]} h5 {[%emt 0:00:31]} 11. Kb1 {[%emt 0:14:54]} Be7 {[%emt 0:00:50]} 12. f5 {[%emt 0:04:07]} Bc4 {[%emt 0:00:23]} 13. Bxc4 {[%emt 0:00:07]} Rxc4 {[%emt 0:00:05]} 14. Qd3 {[%emt 0:00:06]} b5 {[%emt 0:21:04]} 15. Nd2 {[%emt 0:07:54]} Rc8 {[%emt 0:05:05]} 16. Bg5 {[%emt 0:03:13]} Ng4 {[%emt 0:22:14]} 17. Bxe7 {[%emt 0:01:13]} Qxe7 {[%emt 0:02:16]} 18. Nd5 {[%emt 0:00:05]} Qd8 {[%emt 0:00:04]} 19. Qa3 {[%emt 0:01:33]} a5 {[%emt 0:16:15]} 20. Qf3 {[%emt 0:13:05]} Ngf6 {[%emt 0:01:58]} 21. Nf1 {[%emt 0:00:44]} Nb6 {[%emt 0:10:06]} 22. Nxf6+ {[%emt 0:02:21]} gxf6 {[%emt 0:00:27]} 23. Ne3 {[%emt 0:00:48]} Ke7 {[%emt 0:00:50]} 24. h4 {[%emt 0:03:20]} Rc5 {[%emt 0:01:24]} 25. Rd3 {[%emt 0:01:48]} Qc7 {[%emt 0:00:33]} 26. Rhd1 {[%emt 0:03:03]} Rc6 {[%emt 0:03:52]} 27. Qe2 {[%emt 0:00:50]} b4 {[%emt 0:00:38]} 28. Rd5 {[%emt 0:00:35]} Ra8 {[%emt 0:03:41]} 29. Qxh5 {[%emt 0:03:11]} b3 {[%emt 0:00:03]} 30. axb3 {[%emt 0:01:54]} a4 {[%emt 0:00:08]} 31. b4 {[%emt 0:00:29]} a3 {[%emt 0:00:34]} 32. b3 {[%emt 0:08:19]} Rxc2 {[%emt 0:00:57]} 33. R5d3 {[%emt 0:01:42]} a2+ {[%emt 0:00:12]} 0-1

[Event "26th Abu Dhabi Master 2019"]
[Site "Abu Dhabi"]
[Date "2019.08.08"]
[Round "7.12"]
[White "Indjic, Aleksandar"]
[Black "Bajarani, Ulvi"]
[Result "1-0"]
[ECO "D43"]
[WhiteElo "2604"]
[BlackElo "2485"]
[Annotator "ChessBase"]
[PlyCount "43"]
[EventDate "2019.08.02"]
[EventType "swiss"]
[EventCountry "UAE"]
[SourceTitle "playchess.com"]
[Source "ChessBase"]
[SourceQuality "1"]
[TimeControl "5400+30"]

1. d4 {[%emt 0:03:01]} e6 {[%emt 0:00:00]} 2. Nf3 {[%emt 0:00:52]} Nf6 {[%emt 0:00:00]} 3. c4 {[%emt 0:00:18]} d5 {[%emt 0:00:00]} 4. Nc3 {[%emt 0:00:06]} c6 {[%emt 0:00:00]} 5. Bg5 {[%emt 0:00:16]} h6 {[%emt 0:00:00]} 6. Bxf6 {[%emt 0:00:06]} Qxf6 {[%emt 0:00:04]} 7. Qb3 {[%emt 0:00:07]} a5 {[%emt 0:00:32]} 8. e4 {[%emt 0:00:43]} a4 {[%emt 0:01:54]} 9. Qc2 {[%emt 0:00:06]} dxe4 {[%emt 0:01:25]} 10. Nxe4 {[%emt 0:00:07]} Bb4+ {[%emt 0:00:59]} 11. Ke2 {[%emt 0:05:31]} Qf5 {[%emt 0:00:39]} 12. c5 {[%emt 0:02:23]} O-O {[%emt 0:00:12]} 13. Ke3 {[%emt 0:00:21]} e5 {[%emt 0:07:42]} 14. Nxe5 {[%emt 0:01:07]} Nd7 {[%emt 0:01:01]} 15. g4 {[%emt 0:00:58]} Qe6 {[%emt 0:01:10]} 16. Bc4 {[%emt 0:00:16]} Qe7 {[%emt 0:00:55]} 17. Ng6 {[%emt 0:00:56]} Qe8 {[%emt 0:00:05]} 18. a3 {[%emt 0:10:24]} Ba5 {[%emt 0:01:01]} 19. Kf3 {[%emt 0:00:18]} b6 {[%emt 0:02:58]} 20. g5 {[%emt 0:03:36]} h5 {[%emt 0:02:38]} 21. Nd6 {[%emt 0:04:18]} Qd8 {[%emt 0:00:07]} 22. Qf5 {[%emt 0:01:03]} 1-0